bitfinex/quotes_SOLUSD_20250718
["timestamp","ask_amount","ask_price","bid_price","bid_amount"]
[1752880132232,0.72,175.6,175.57,0.06]
[1752880132539,3.67797138,175.58,175.57,0.06]
[1752880132835,45.99797138,175.58,175.57,0.06]
[1752880133214,41.6,175.58,175.57,0.06]
[1752880133618,45.99797138,175.58,175.57,0.06]
[1752880134024,51.69338087,175.58,175.57,0.06]
[1752880134209,55.93007926,175.58,175.57,0.06]
[1752880135123,72.71476323,175.58,175.57,0.06]
[1752880135327,26.0,175.55,175.54,0.06]
[1752880135538,92.31935374,175.55,175.54,0.06]
[1752880135837,93.03935374,175.55,175.54,0.06]
[1752880136222,89.36138236,175.55,175.54,0.06]
[1752880136521,93.53935374,175.55,175.54,0.06]
[1752880137038,99.23573653,175.55,175.54,0.06]
[1752880137547,16.78468397,175.54,175.53,0.06]
[1752880137724,29.67797138,175.51,175.5,0.06]
[1752880137923,75.67466977,175.51,175.5,0.06]
[1752880138131,96.85732512,175.51,175.5,0.06]
[1752880138526,89.50138236,175.51,175.5,0.06]
[1752880138841,93.17935374,175.51,175.5,0.06]
[1752880139217,93.16092152,175.51,175.5,0.06]
[1752880139518,46.15797138,175.51,175.5,0.06]
[1752880139732,45.43797138,175.51,175.5,0.06]
[1752880139924,4.39797138,175.54,175.5,0.06]
[1752880140122,21.18265535,175.51,175.5,0.06]
[1752880140331,96.91864542,175.51,175.5,0.06]
[1752880140527,92.70062673,175.51,175.5,0.06]
[1752880140724,30.39797138,175.51,175.5,0.06]
[1752880140935,68.66,175.51,175.5,0.06]
[1752880141142,41.94,175.51,175.5,0.06]
[1752880141349,45.61797138,175.51,175.5,0.06]
[1752880141726,72.49830777,175.51,175.5,0.06]
[1752880142230,68.82033639,175.51,175.5,0.06]
[1752880142430,73.03357382,175.51,175.5,0.06]
[1752880142751,68.82033639,175.51,175.5,0.06]
[1752880142949,42.66,175.51,175.5,0.06]
[1752880143243,46.33797138,175.51,175.5,0.06]
[1752880145147,52.03565242,175.51,175.5,0.06]
[1752880147048,55.7136238,175.51,175.5,0.06]
[1752880147223,72.49830777,175.51,175.5,0.06]
[1752880147420,76.70295533,175.51,175.5,0.06]
[1752880148269,26.0,175.48,175.42,1.6069]
[1752880148465,26.0,175.48,175.39,0.2]
[1752880148466,92.88494463,175.48,175.39,0.2]
[1752880148655,93.55494463,175.48,175.39,0.91]
[1752880148969,95.05131046,175.48,175.39,6.61139486]
[1752880149172,95.05131046,175.48,175.39,0.2]
[1752880149400,95.05131046,175.48,175.47,1e-08]
[1752880149401,129.78291813,175.48,175.47,1e-08]
[1752880149560,26.0,175.44,175.39,0.2]
[1752880149872,3.67797138,175.4,175.39,0.2]
[1752880150085,43.22,175.4,175.39,0.2]
[1752880150372,47.56797138,175.4,175.39,0.2]
[1752880150743,51.76251473,175.4,175.39,0.2]
[1752880151041,51.76251473,175.4,175.32,0.71]
[1752880151042,16.78468397,175.39,175.29,28.5719441]
[1752880151247,3.67797138,175.32,175.29,28.5719441]
[1752880151636,3.67797138,175.3,175.29,27.8619441]
[1752880151844,44.51,175.32,175.29,26.2896441]
[1752880152053,44.55,175.31,175.29,25.2896441]
[1752880152379,3.67797138,175.3,175.29,25.2896441]
[1752880152543,3.67797138,175.3,175.25,7.98813019]
[1752880152738,43.9,175.31,175.26,0.71]
[1752880153171,6.01459493,175.31,175.26,0.71]
[1752880153360,44.71,175.33,175.27,0.71]
[1752880153564,0.67,175.32,175.25,2.2823]
[1752880153753,44.06,175.31,175.25,2.2823]
[1752880153956,6.01459493,175.3,175.25,14.00291811]
[1752880154172,6.01459493,175.3,175.25,7.27832318]
[1752880154379,6.01459493,175.3,175.26,0.71]
[1752880154554,6.01459493,175.3,175.27,0.71]
[1752880154751,6.01459493,175.28,175.24,7.122]
[1752880155063,44.06,175.31,175.29,0.06]
[1752880155249,6.01459493,175.3,175.29,0.06]
[1752880155671,14.25205115,175.42,175.29,0.06]
[1752880155845,14.25205115,175.42,175.29,0.77]
[1752880155846,6.01459493,175.32,175.29,0.77]
[1752880156049,44.12,175.33,175.3,0.71]
[1752880156266,6.01459493,175.35,175.3,8.28979493]
[1752880156479,6.01459493,175.38,175.33,6.01459493]
[1752880156766,4.16653469,175.37,175.34,6.72459493]
[1752880156971,50.13459493,175.39,175.35,0.71]
[1752880157152,16.78468397,175.43,175.33,6.1705]
[1752880157153,4.16646837,175.38,175.36,12.42714967]
[1752880157343,50.11459493,175.42,175.37,6.72459493]
[1752880157545,50.11459493,175.42,175.36,5.70255474]
[1752880157546,4.1647403,175.41,175.38,6.72459493]
[1752880157778,4.1647403,175.4,175.39,0.71]
[1752880158478,4.1647403,175.4,175.39,6.72459493]
[1752880159048,44.08,175.45,175.4,5.70125427]
[1752880159249,4.1646277,175.44,175.41,6.72459493]
[1752880159472,4.1646277,175.43,175.41,0.71]
[1752880159650,4.1646277,175.42,175.41,6.72459493]
[1752880159977,4.1646277,175.45,175.41,6.72459493]
[1752880160179,4.1646277,175.44,175.42,6.72459493]
[1752880160477,44.08,175.48,175.43,6.01459493]
[1752880160664,4.16618376,175.47,175.45,6.01459493]
[1752880160864,4.16618376,175.47,175.41,6.1705]
[1752880160865,6.01459493,175.52,175.46,6.72459493]
[1752880161066,4.16679257,175.51,175.47,11.71348023]
[1752880161280,4.16679257,175.5,175.48,0.71]
[1752880161448,4.16679257,175.49,175.48,0.71]
[1752880161955,4.16679257,175.49,175.48,6.01459493]
[1752880162487,4.16679257,175.52,175.48,6.72459493]
[1752880162786,4.16679257,175.51,175.49,6.72459493]
[1752880162986,4.16679257,175.5,175.49,6.72459493]
[1752880163483,4.16679257,175.5,175.49,0.71]
[1752880163860,4.17300248,175.5,175.49,0.71]
[1752880164949,4.17300248,175.5,175.49,12.42292531]
[1752880165154,0.03,175.53,175.49,13.98812531]
[1752880165385,4.1770425,175.52,175.51,6.01459493]
[1752880165758,4.1770425,175.52,175.51,0.71]
[1752880165970,3.6770425,175.52,175.46,32.72459493]
[1752880166175,6.01459493,175.51,175.47,6.01459493]
[1752880166374,6.01459493,175.51,175.48,0.71]
[1752880166555,6.01459493,175.51,175.47,0.71]
[1752880166881,6.01459493,175.51,175.46,32.01459493]
[1752880167053,6.01459493,175.51,175.48,0.71]
[1752880167690,0.7,175.53,175.48,0.71]
[1752880167869,0.7,175.53,175.48,6.72459493]
[1752880168064,6.01459493,175.52,175.49,0.71]
[1752880168261,6.01459493,175.51,175.46,32.72459493]
[1752880168462,6.68459493,175.52,175.47,6.72459493]
[1752880168760,6.68459493,175.52,175.48,0.71]
[1752880168761,6.01459493,175.52,175.48,0.71]
[1752880169469,0.03,175.53,175.48,0.71]
[1752880169470,0.03,175.53,175.48,6.4085929]
[1752880169669,6.01459493,175.52,175.49,0.71]
[1752880169870,0.03,175.53,175.5,0.71]
[1752880170382,0.03,175.53,175.5,6.72459493]
[1752880170572,0.03,175.53,175.51,6.72459493]
[1752880170763,0.03,175.53,175.52,6.01459493]
[1752880170993,0.03,175.53,175.52,6.72459493]
[1752880171697,0.03,175.53,175.52,12.42195135]
[1752880172287,0.03,175.53,175.52,13.96545135]
[1752880172591,1e-08,175.53,175.52,56.75013532]
[1752880172897,1e-08,175.53,175.52,30.75013532]
[1752880173101,1e-08,175.53,175.52,56.75013532]
[1752880173254,1e-08,175.53,175.52,30.75013532]
[1752880173758,1e-08,175.53,175.52,56.75013532]
[1752880174032,1e-08,175.53,175.52,30.75013532]
[1752880174990,1e-08,175.53,175.52,74.35013532]
[1752880175563,1e-08,175.53,175.52,100.35013532]
[1752880178106,1e-08,175.53,175.52,74.35013532]
[1752880179279,0.03,175.57,175.56,48.7992789]
[1752880179483,0.03,175.61,175.56,48.7992789]
[1752880179484,0.03,175.61,175.58,16.78468397]
[1752880179680,0.03,175.61,175.57,6.1439]
[1752880179681,0.03,175.61,175.6,6.01459493]
[1752880179881,0.03,175.61,175.6,11.70935575]
[1752880180286,0.03,175.61,175.59,43.44]
[1752880180602,0.03,175.61,175.6,43.42]
[1752880181703,0.03,175.61,175.6,49.80476082]
[1752880182173,0.03,175.61,175.6,55.81935575]
[1752880182880,0.03,175.61,175.6,74.11713972]
[1752880184096,0.03,175.61,175.6,13.91245575]
[1752880184303,0.03,175.61,175.6,57.25245575]
[1752880184501,0.03,175.61,175.6,74.03713972]
[1752880184682,0.03,175.61,175.6,57.21245575]
[1752880185107,0.03,175.61,175.6,56.52245575]
[1752880185272,0.03,175.61,175.6,50.82769493]
[1752880185593,0.03,175.61,175.6,50.50786082]
[1752880185798,6.74459493,175.61,175.56,7.60839493]
[1752880185993,0.7,175.6,175.57,43.28]
[1752880186383,0.7,175.6,175.56,7.60839493]
[1752880186715,0.7,175.59,175.55,43.26]
[1752880186878,6.01459493,175.56,175.55,43.26]
[1752880187077,6.71459493,175.56,175.55,43.26]
[1752880188287,6.71459493,175.56,175.55,43.22]
[1752880189203,12.41065325,175.56,175.53,101.66952577]
[1752880189511,6.71459493,175.55,175.53,101.66952577]
[1752880190904,6.01459493,175.54,175.53,58.46952577]
[1752880191211,6.01459493,175.54,175.53,101.62952577]
[1752880191909,6.71459493,175.55,175.53,101.62952577]
[1752880192090,0.7,175.55,175.53,101.62952577]
[1752880192404,6.01459493,175.56,175.53,101.62952577]
[1752880192610,31.72463128,175.61,175.53,101.62952577]
[1752880192779,6.01459493,175.56,175.53,101.62952577]
[1752880192985,6.71459493,175.56,175.53,101.62952577]
[1752880193984,0.7,175.59,175.53,107.32635294]
[1752880194189,6.71459493,175.59,175.54,6.70459493]
[1752880194388,6.71459493,175.59,175.55,43.1]
[1752880194892,0.03,175.61,175.57,6.01459493]
[1752880195084,0.03,175.61,175.58,43.73]
[1752880195704,0.03,175.61,175.58,43.04]
[1752880196496,0.03,175.61,175.58,48.73525773]
[1752880197109,0.03,175.61,175.58,49.42525773]
[1752880197291,0.03,175.61,175.58,54.74985266]
[1752880197606,0.03,175.61,175.58,49.42525773]
[1752880197807,0.03,175.61,175.6,6.01459493]
[1752880198017,0.03,175.61,175.6,65.7592789]
[1752880198185,1e-08,175.61,175.6,65.7592789]
[1752880198386,1e-08,175.61,175.6,72.14403972]
[1752880198600,1e-08,175.61,175.6,98.14403972]
[1752880200109,1e-08,175.65,175.64,26.0]
[1752880200314,1e-08,175.65,175.64,74.91459493]
[1752880200518,1e-08,175.65,175.64,81.29805883]
[1752880201523,1e-08,175.65,175.64,75.2834639]
[1752880201728,1e-08,175.65,175.64,81.29805883]
[1752880202590,1e-08,175.65,175.64,31.6934639]
[1752880202904,0.70000001,175.65,175.64,48.5334639]
[1752880203093,4.90253417,175.65,175.64,48.5334639]
[1752880203523,0.70000001,175.65,175.64,48.5334639]
[1752880203904,1e-08,175.65,175.64,48.5334639]
[1752880204137,1e-08,175.65,175.64,55.23805883]
[1752880204420,1e-08,175.66,175.65,23.08248397]
[1752880204626,1e-08,175.66,175.65,36.04953263]
[1752880205128,1e-08,175.69,175.68,18.28828397]
[1752880205323,1e-08,175.69,175.68,67.1428789]
[1752880205497,1e-08,175.71,175.7,42.78468397]
[1752880205697,1e-08,175.73,175.71,16.78468397]
[1752880205896,1e-08,175.73,175.72,48.83459493]
[1752880206108,0.1,175.75,175.74,42.78468397]
[1752880206399,0.1,175.75,175.74,91.5992789]
[1752880206609,1e-08,175.75,175.74,97.96950309]
[1752880206915,1e-08,175.75,175.74,104.40950309]
[1752880207496,0.03,175.78,175.74,104.40950309]
[1752880207708,1e-08,175.78,175.77,22.7992789]
[1752880207920,1e-08,175.78,175.77,65.5592789]
[1752880208099,1e-08,175.78,175.77,66.2392789]
[1752880208708,1e-08,175.78,175.77,97.9285319]
[1752880208943,1e-08,175.78,175.77,91.91393697]
[1752880209097,1e-08,175.78,175.77,31.689253]
[1752880209299,1e-08,175.78,175.77,80.42384793]
[1752880209300,4.20033714,175.78,175.77,80.42384793]
[1752880209597,0.03,175.81,175.77,81.10384793]
[1752880209797,0.03,175.81,175.78,6.01459493]
[1752880210026,0.03,175.81,175.78,6.69459493]
[1752880210233,1e-08,175.79,175.78,6.69459493]
[1752880210417,1e-08,175.81,175.8,26.0]
[1752880210622,1e-08,175.81,175.8,97.22756103]
[1752880210826,1e-08,175.82,175.8,91.8929661]
[1752880211001,1e-08,175.82,175.81,6.69459493]
[1752880211830,1e-08,175.82,175.81,17.46468397]
[1752880212033,1e-08,175.82,175.81,23.4792789]
[1752880212813,1e-08,175.82,175.81,48.42795859]
[1752880213013,1e-08,175.82,175.81,54.44255352]
[1752880213211,1e-08,175.82,175.81,55.12255352]
[1752880213732,1e-08,175.83,175.82,16.78468397]
[1752880213906,1e-08,175.83,175.82,23.4792789]
[1752880214314,0.03,175.85,175.82,23.4792789]
[1752880214315,1e-08,175.85,175.84,26.0]
[1752880214518,1e-08,175.86,175.84,91.5192789]
[1752880214718,1e-08,175.86,175.85,11.7012597]
[1752880214918,1e-08,175.86,175.85,29.16594367]
[1752880215438,0.7,175.97,175.89,26.0]
[1752880215611,0.7,175.97,175.94,6.01459493]
[1752880215809,0.7,175.97,175.95,48.69459493]
[1752880216017,0.7,175.97,175.96,42.68]
[1752880216715,0.7,175.97,175.96,48.36310979]
[1752880217109,0.7,176.0,175.96,54.37770472]
[1752880217308,6.01459493,176.01,175.96,54.37770472]
[1752880217535,0.7,175.99,175.96,48.36310979]
[1752880217838,6.01459493,176.01,175.97,6.01459493]
[1752880218131,0.7,176.0,175.98,42.66]
[1752880218517,0.7,176.0,175.98,48.67459493]
[1752880218720,0.7,176.0,175.98,42.66]
[1752880218940,0.7,176.0,175.99,5.68214103]
[1752880219837,0.7,176.03,175.99,11.69673596]
[1752880220018,0.03,176.01,176.0,48.63459493]
[1752880220802,0.03,176.01,176.0,54.31641311]
[1752880221031,0.73,176.01,175.96,5.68310979]
[1752880221340,0.7,176.0,175.98,6.01459493]
[1752880221544,0.03,176.01,175.99,42.56]
[1752880221844,0.03,176.01,176.0,6.01459493]
[1752880222334,0.03,176.01,175.99,42.56]
[1752880222519,0.03,176.01,175.99,48.57459493]
[1752880222716,0.7,176.0,175.97,6.01459493]
[1752880222936,0.03,176.01,175.99,5.68214103]
[1752880223126,0.03,176.01,176.0,48.53459493]
[1752880224253,0.03,176.01,176.0,42.52]
[1752880224463,0.03,176.01,176.0,48.53459493]
[1752880225159,0.73,176.01,176.0,5.68181818]
[1752880225336,0.03,176.01,176.0,48.18181818]
[1752880225537,0.03,176.01,176.0,54.19641311]
[1752880225743,0.03,176.01,176.0,54.87641311]
[1752880226333,1e-08,176.01,176.0,54.87641311]
[1752880227842,1e-08,176.01,176.0,77.67569201]
[1752880228843,1e-08,176.01,176.0,79.21919201]
[1752880229239,0.03,176.08,176.04,42.78468397]
[1752880229446,0.03,176.08,176.07,6.01459493]
[1752880229656,1e-08,176.08,176.07,48.41459493]
[1752880229963,1e-08,176.08,176.07,65.8792789]
[1752880230957,1e-08,176.08,176.06,6.4395]
[1752880231260,1e-08,176.08,176.07,80.03415419]
[1752880232057,1e-08,176.08,176.07,37.69415419]
[1752880232248,1e-08,176.08,176.07,97.49883816]
[1752880232643,1e-08,176.08,176.07,71.49883816]
[1752880234156,10.51690029,176.24,176.11,16.78468397]
[1752880234363,0.7,176.19,176.16,6.01459493]
[1752880234546,6.01459493,176.21,176.17,42.3]
[1752880234748,0.7,176.18,176.17,42.3]
[1752880235141,0.7,176.18,176.17,47.97633535]
[1752880236569,0.69,176.21,176.17,53.99093028]
[1752880236948,0.69,176.2,176.17,53.99093028]
[1752880237538,0.69,176.19,176.17,47.97633535]
[1752880238455,6.01459493,176.21,176.17,47.97633535]
[1752880238656,0.69,176.19,176.17,47.97633535]
[1752880239583,0.69,176.19,176.17,53.99093028]
[1752880239782,6.01459493,176.21,176.17,53.99093028]
[1752880240155,0.69,176.2,176.17,53.99093028]
[1752880240382,0.69,176.2,176.17,47.97633535]
[1752880240679,0.69,176.25,176.19,6.01459493]
[1752880240879,0.69,176.25,176.18,0.7]
[1752880240880,0.69,176.25,176.21,6.01459493]
[1752880241068,0.69,176.25,176.22,42.16]
[1752880241268,0.69,176.25,176.23,5.67440276]
[1752880241472,0.69,176.25,176.24,42.14]
[1752880241679,43.4489,176.29,176.24,42.14]
[1752880241680,2.81521535,176.26,176.24,42.14]
[1752880241982,0.03,176.23,176.22,42.14]
[1752880242487,0.03,176.23,176.22,48.15459493]
[1752880242987,0.03,176.23,176.22,48.85459493]
[1752880243191,0.03,176.23,176.22,65.6392789]
[1752880243492,0.03,176.23,176.19,6.37569101]
[1752880243701,0.03,176.23,176.21,26.0]
[1752880243904,0.03,176.23,176.22,48.13459493]
[1752880244087,0.03,176.23,176.22,42.12]
[1752880244694,6.73459493,176.23,176.12,17.48468397]
[1752880244866,6.01459493,176.18,176.13,53.79221941]
[1752880245070,6.70459493,176.17,176.13,42.1]
[1752880245281,0.69,176.16,176.14,42.1]
[1752880245485,0.69,176.15,176.14,42.1]
[1752880246564,6.70459493,176.15,176.1,5.67851171]
[1752880246765,6.01459493,176.12,176.03,20.91257406]
[1752880247074,0.69,176.11,176.04,48.07459493]
[1752880247281,6.01459493,176.1,176.05,6.01459493]
[1752880247487,0.69,176.09,176.06,42.06]
[1752880247684,0.69,176.08,176.06,42.06]
[1752880247991,5.6786725,176.1,176.03,0.06]
[1752880247992,0.69,176.07,176.03,0.06]
[1752880248184,0.69,176.06,176.04,42.06]
[1752880248388,0.69,176.06,176.03,0.06]
[1752880248579,0.69,176.06,176.04,42.06]
[1752880249581,0.69,176.05,176.04,42.06]
[1752880249898,6.70459493,176.05,176.03,0.06]
[1752880250063,6.01459493,176.05,176.03,0.06]
[1752880250266,0.69,176.04,176.03,0.06]
[1752880252273,16.5220889,176.04,176.03,0.06]
[1752880252488,4.13696682,176.04,176.03,48.07459493]
[1752880252667,6.70459493,176.08,176.03,48.07459493]
[1752880252975,4.83154603,176.07,176.03,48.07459493]
[1752880253175,0.69,176.07,176.03,48.07459493]
[1752880253392,4.14537587,176.06,176.03,48.07459493]
[1752880253586,0.69,176.07,176.03,48.07459493]
[1752880253776,4.14537659,176.06,176.03,48.07459493]
[1752880253977,0.69,176.07,176.03,48.07459493]
[1752880254281,4.83526415,176.06,176.03,48.07459493]
[1752880254494,4.14526415,176.05,176.03,48.07459493]
[1752880254695,0.69,176.06,176.03,48.07459493]
[1752880254873,4.14966665,176.05,176.03,48.07459493]
[1752880255073,4.14966665,176.05,176.03,0.06]
[1752880255074,0.69,176.04,176.03,0.06]
[1752880255388,10.85453989,176.04,176.03,0.06]
[1752880256376,4.83994496,176.04,176.03,0.06]
[1752880256622,10.85453989,176.04,176.03,0.06]
[1752880257578,4.14994496,176.04,176.03,0.06]
[1752880258601,4.16263604,176.04,176.03,0.06]
[1752880258900,4.16263604,176.04,176.03,6.07459493]
[1752880259103,4.16263604,176.04,176.03,48.65459493]
[1752880259479,4.16263604,176.04,176.03,47.95459493]
[1752880260103,4.16263604,176.04,176.03,53.63544478]
[1752880260276,4.16263604,176.04,176.03,0.06]
[1752880260474,16.54775812,176.04,176.03,0.06]
[1752880260698,16.54775812,176.04,175.99,0.06]
[1752880260900,6.01459493,176.0,175.99,0.06]
[1752880261109,10.17723097,176.0,175.99,0.06]
[1752880261283,10.17723097,176.0,175.92,41.86]
[1752880261284,33.66650987,176.0,175.92,41.86]
[1752880261482,6.01459493,175.95,175.92,41.86]
[1752880261683,4.85263604,175.94,175.92,41.86]
[1752880262010,4.16263604,175.93,175.9,6.01459493]
[1752880262313,6.01459493,175.95,175.9,6.01459493]
[1752880262314,4.16263604,175.92,175.91,26.0]
[1752880262516,4.16502341,175.92,175.89,42.08]
[1752880262690,4.16502341,175.91,175.89,42.08]
[1752880263003,4.16502341,175.9,175.89,42.08]
[1752880263205,4.16352808,175.9,175.89,48.09459493]
[1752880263408,6.01459493,175.93,175.89,48.09459493]
[1752880263589,4.16363848,175.92,175.89,48.09459493]
[1752880263788,4.16363848,175.91,175.89,48.09459493]
[1752880264002,6.01459493,175.93,175.89,48.09459493]
[1752880264200,4.16364253,175.92,175.89,48.09459493]
[1752880264407,6.70459493,175.93,175.89,48.09459493]
[1752880264599,6.70459493,175.93,175.89,42.08]
[1752880264797,0.69,175.92,175.89,42.08]
[1752880265988,6.01459493,175.93,175.89,42.08]
[1752880266187,6.70459493,175.93,175.89,42.08]
[1752880268019,6.70459493,175.93,175.89,0.2]
[1752880268522,0.69,175.93,175.89,6.21459493]
[1752880268819,6.01459493,175.9,175.89,0.2]
[1752880269202,6.70459493,175.9,175.89,0.2]
[1752880270510,12.38964325,175.9,175.89,0.2]
[1752880272622,15.23247925,175.9,175.89,0.2]
[1752880273906,12.38964325,175.9,175.89,0.2]
[1752880277115,29.17432722,175.9,175.89,0.2]
[1752880277429,33.29900942,175.9,175.89,0.2]
[1752880277793,29.17432722,175.9,175.89,0.2]
[1752880278215,33.29739463,175.9,175.89,0.2]
[1752880278526,81.09198956,175.9,175.89,0.2]
[1752880278721,26.0,175.87,175.81,0.06]
[1752880278930,6.01459493,175.83,175.81,0.06]
[1752880279410,42.47,175.86,175.81,0.06]
[1752880279411,41.78,175.86,175.81,0.06]
[1752880279615,6.70459493,175.82,175.81,0.06]
[1752880280244,54.19223001,175.82,175.81,0.06]
[1752880280602,53.50223001,175.82,175.81,0.06]
[1752880280798,54.19223001,175.82,175.81,0.06]
[1752880282032,48.50459493,175.82,175.81,0.06]
[1752880282221,54.19223001,175.82,175.81,0.06]
[1752880282727,42.49,175.82,175.81,0.06]
[1752880282901,0.69,175.86,175.81,0.06]
[1752880283102,4.11779053,175.88,175.82,6.68459493]
[1752880283420,7.5174,175.92,175.82,6.68459493]
[1752880283421,6.37442417,175.92,175.85,6.01459493]
[1752880283599,6.01459493,175.9,175.85,6.01459493]
[1752880283804,42.49,175.91,175.85,6.68459493]
[1752880284024,6.01459493,175.9,175.85,6.68459493]
[1752880284305,42.49,175.91,175.88,6.01459493]
[1752880284306,41.8,175.91,175.88,6.01459493]
[1752880284540,41.8,175.91,175.89,0.67]
[1752880284836,41.8,175.91,175.88,6.01459493]
[1752880285034,41.8,175.91,175.88,6.68459493]
[1752880285240,41.8,175.91,175.88,12.37017452]
[1752880285533,41.8,175.95,175.9,6.01459493]
[1752880285740,6.01459493,175.98,175.88,19.89981656]
[1752880285741,41.8,175.99,175.93,6.01459493]
[1752880286045,41.8,175.99,175.96,6.01459493]
[1752880286046,0.03,175.99,175.96,6.01459493]
[1752880286249,0.03,175.99,175.98,6.01459493]
[1752880286600,0.03,175.99,175.98,6.68459493]
[1752880287905,0.03,175.99,175.98,6.01459493]
[1752880288201,0.03,175.99,175.97,6.01459493]
[1752880288720,0.03,175.99,175.98,6.68459493]
[1752880289533,0.03,175.99,175.98,26.67]
[1752880289704,0.03,175.99,175.98,0.67]
[1752880290029,4.17988159,175.99,175.98,0.67]
[1752880290203,0.03,175.99,175.98,6.68459493]
[1752880290405,4.18305849,175.99,175.98,6.01459493]
[1752880290819,4.18305849,175.99,175.97,6.01459493]
[1752880291022,0.03,175.99,175.97,6.68459493]
[1752880291436,4.15723008,175.98,175.94,0.67]
[1752880291746,4.15723008,175.97,175.96,6.01459493]
[1752880291931,4.15723008,175.97,175.95,6.68459493]
[1752880292123,4.15723008,175.96,175.95,6.68459493]
[1752880293804,0.03,175.99,175.95,12.36802772]
[1752880294004,0.03,175.99,175.98,6.01459493]
[1752880294218,4.19258096,175.99,175.98,6.01459493]
[1752880294530,0.03,175.99,175.98,38.36705884]
[1752880294733,0.03,175.99,175.98,32.35246391]
[1752880295048,4.19410493,175.99,175.98,32.68459493]
[1752880295948,4.19410493,175.99,175.98,38.36705884]
[1752880296244,4.19410493,175.99,175.98,32.68459493]
[1752880296445,4.19410493,175.99,175.98,38.36705884]
[1752880296752,0.03,175.99,175.98,55.15174281]
[1752880297109,4.16709119,176.05,176.03,6.6625]
[1752880297311,0.03,176.07,176.04,6.67459493]
[1752880297528,0.03,176.07,176.06,6.01459493]
[1752880297937,0.03,176.07,176.06,6.67459493]
[1752880298708,0.03,176.07,176.06,12.35447678]
[1752880298940,4.16760197,176.12,176.07,16.78468397]
[1752880299247,42.5,176.16,176.11,6.01459493]
[1752880299446,4.16359699,176.15,176.12,6.01459493]
[1752880299742,4.16359699,176.14,176.11,6.67459493]
[1752880299946,4.16359699,176.13,176.11,6.67459493]
[1752880300128,41.78,176.16,176.12,6.01459493]
[1752880300319,4.16162933,176.15,176.14,6.01459493]
[1752880300515,0.1,176.17,176.14,6.67459493]
[1752880300837,0.1,176.17,176.16,6.01459493]
[1752880301961,0.1,176.17,176.16,6.67459493]
[1752880302320,0.1,176.17,176.16,23.4592789]
[1752880302714,0.1,176.17,176.16,29.13593648]
[1752880302926,0.1,176.17,176.16,12.35125251]
[1752880303317,1e-08,176.17,176.16,12.35125251]
[1752880303536,1e-08,176.17,176.16,29.13593648]
[1752880303843,0.03,176.2,176.16,29.13593648]
[1752880303844,0.03,176.2,176.19,48.7992789]
[1752880304023,0.03,176.2,176.19,90.5392789]
[1752880304344,0.03,176.2,176.19,74.41459493]
[1752880304519,1e-08,176.2,176.19,74.41459493]
[1752880304715,1e-08,176.2,176.19,96.87496991]
[1752880306019,1e-08,176.2,176.19,79.43028594]
[1752880306421,1e-08,176.2,176.19,80.09028594]
[1752880309722,1e-08,176.2,176.19,96.87496991]
[1752880313831,0.03,176.24,176.23,42.78468397]
[1752880314032,0.03,176.24,176.23,90.5192789]
[1752880314239,0.03,176.24,176.23,91.1792789]
[1752880314837,0.03,176.24,176.23,96.85368166]
[1752880316051,0.03,176.28,176.23,96.85368166]
[1752880316052,0.03,176.28,176.24,16.78468397]
[1752880316231,0.03,176.28,176.27,6.01459493]
[1752880316549,0.03,176.28,176.27,47.71459493]
[1752880316853,0.03,176.28,176.27,53.38771003]
[1752880319756,0.03,176.28,176.27,47.3731151]
[1752880319952,0.03,176.28,176.27,53.38771003]
[1752880320660,0.03,176.28,176.27,5.6731151]
[1752880320861,0.75,176.28,176.24,11.68867572]
[1752880321042,0.75,176.28,176.25,41.68]
[1752880321243,0.72,176.27,176.25,41.68]
[1752880321443,0.03,176.28,176.25,41.68]